[Event "Titled Tuesday Blitz January 25 2022"]
[White "Jakubowski, Krzysztof"]
[Black "Harshavardhan G B"]
[WhiteFideId "1112848"]
[BlackFideId "25059009"]
[WhiteElo "2365"]
[BlackElo "1831"]
[Result "1-0"]
[Round "08"]
[TimeControl "180+1"]
[Date "2022.01.26"]
[WhiteClock "0:00:46"]
[BlackClock "0:01:09"]

1. e4 {[%clk 0:03:00]}  c5 {[%clk 0:02:51]} 2. Nf3 {[%clk 0:03:00]}  d6 {[%clk 0:02:41]} 3. d4 {[%clk 0:02:59]}  cxd4 {[%clk 0:02:42]} 4. Nxd4 {[%clk 0:03:00]}  Nf6 {[%clk 0:02:42]} 5. Nc3 {[%clk 0:03:00]}  Nc6 {[%clk 0:02:42]} 6. Bg5 {[%clk 0:02:59]}  e6 {[%clk 0:02:42]} 7. Qd2 {[%clk 0:02:58]}  a6 {[%clk 0:02:41]} 8. O-O-O {[%clk 0:02:56]}  Bd7 {[%clk 0:02:41]} 9. f4 {[%clk 0:02:53]}  b5 {[%clk 0:02:38]} 10. Bxf6 {[%clk 0:02:53]}  gxf6 {[%clk 0:02:37]} 11. Kb1 {[%clk 0:02:52]}  Qb6 {[%clk 0:02:36]} 12. Nce2 {[%clk 0:02:51]}  Be7 {[%clk 0:02:35]} 13. h4 {[%clk 0:02:40]}  h5 {[%clk 0:02:34]} 14. Rh3 {[%clk 0:02:39]}  O-O-O {[%clk 0:02:33]} 15. a4 {[%clk 0:01:59]}  b4 {[%clk 0:02:24]} 16. Nb3 {[%clk 0:01:51]}  a5 {[%clk 0:02:22]} 17. Qd3 {[%clk 0:01:45]}  Kb7 {[%clk 0:02:18]} 18. Rg3 {[%clk 0:01:44]}  Rhg8 {[%clk 0:02:05]} 19. Rxg8 {[%clk 0:01:42]}  Rxg8 {[%clk 0:02:06]} 20. Qf3 {[%clk 0:01:33]}  Rg4 {[%clk 0:01:59]} 21. g3 {[%clk 0:01:33]}  Nb8 {[%clk 0:01:50]} 22. Bh3 {[%clk 0:01:32]}  Bxa4 {[%clk 0:01:47]} 23. Bxg4 {[%clk 0:01:29]}  hxg4 {[%clk 0:01:48]} 24. Qxg4 {[%clk 0:01:27]}  Bxb3 {[%clk 0:01:46]} 25. cxb3 {[%clk 0:01:27]}  Qe3 {[%clk 0:01:46]} 26. f5 {[%clk 0:01:21]}  Qxb3 {[%clk 0:01:43]} 27. Nc1 {[%clk 0:01:21]}  Qc4 {[%clk 0:01:40]} 28. h5 {[%clk 0:01:16]}  Nc6 {[%clk 0:01:32]} 29. Qe2 {[%clk 0:01:14]}  Qc5 {[%clk 0:01:25]} 30. h6 {[%clk 0:01:14]}  Bf8 {[%clk 0:01:25]} 31. h7 {[%clk 0:01:14]}  Bg7 {[%clk 0:01:25]} 32. Qd3 {[%clk 0:01:14]}  Kc7 {[%clk 0:01:19]} 33. Nb3 {[%clk 0:01:13]}  Qe5 {[%clk 0:01:18]} 34. Rc1 {[%clk 0:01:13]}  Kb7 {[%clk 0:01:12]} 35. Nd2 {[%clk 0:00:52]}  d5 {[%clk 0:01:09]} 36. Qb5+ {[%clk 0:00:48]}  Kc7 {[%clk 0:01:07]} 37. Qxc6+ {[%clk 0:00:47]}  Kd8 {[%clk 0:01:07]} 38. Qc8+ {[%clk 0:00:47]}  Ke7 {[%clk 0:01:08]} 39. Rc7+ {[%clk 0:00:47]}  Kd6 {[%clk 0:01:09]} 40. Qd7# {[%clk 0:00:46]} 1-0


[Site "https://www.chess.com"]

[Event "Titled Tuesday Blitz January 25 2022"]
[White "Jobava, Baadur"]
[Black "Howell, David W L"]
[WhiteFideId "13601520"]
[BlackFideId "410608"]
[WhiteElo "2929"]
[BlackElo "3016"]
[Result "1-0"]
[Round "08"]
[TimeControl "180+1"]
[Date "2022.01.26"]
[WhiteClock "0:00:30"]
[BlackClock "0:00:02"]

1. e4 {[%clk 0:03:00]}  g6 {[%clk 0:02:36]} 2. d4 {[%clk 0:02:59]}  Bg7 {[%clk 0:02:36]} 3. c4 {[%clk 0:02:59]}  d6 {[%clk 0:02:34]} 4. f4 {[%clk 0:02:58]}  Nf6 {[%clk 0:02:32]} 5. Nc3 {[%clk 0:02:58]}  O-O {[%clk 0:02:31]} 6. Nf3 {[%clk 0:02:58]}  c5 {[%clk 0:02:31]} 7. d5 {[%clk 0:02:58]}  e6 {[%clk 0:02:32]} 8. Be2 {[%clk 0:02:57]}  exd5 {[%clk 0:02:27]} 9. cxd5 {[%clk 0:02:58]}  Nbd7 {[%clk 0:02:27]} 10. O-O {[%clk 0:02:56]}  Re8 {[%clk 0:02:14]} 11. Nd2 {[%clk 0:02:56]}  c4 {[%clk 0:02:12]} 12. Kh1 {[%clk 0:02:57]}  Nc5 {[%clk 0:02:10]} 13. e5 {[%clk 0:02:57]}  dxe5 {[%clk 0:02:11]} 14. Nxc4 {[%clk 0:02:55]}  exf4 {[%clk 0:01:41]} 15. Bxf4 {[%clk 0:02:56]}  Nfe4 {[%clk 0:01:37]} 16. Nb5 {[%clk 0:02:35]}  Rf8 {[%clk 0:01:26]} 17. Bf3 {[%clk 0:02:24]}  Bd7 {[%clk 0:01:24]} 18. Nc7 {[%clk 0:02:20]}  Rc8 {[%clk 0:01:18]} 19. d6 {[%clk 0:02:20]}  b5 {[%clk 0:01:19]} 20. Ne5 {[%clk 0:02:14]}  g5 {[%clk 0:00:56]} 21. Nxd7 {[%clk 0:02:12]}  Qxd7 {[%clk 0:00:57]} 22. Be3 {[%clk 0:02:06]}  Bxb2 {[%clk 0:00:48]} 23. Bg4 {[%clk 0:01:47]}  Ne6 {[%clk 0:00:38]} 24. Rxf7 {[%clk 0:01:35]}  Rxf7 {[%clk 0:00:33]} 25. Bxe6 {[%clk 0:01:35]}  Qxd6 {[%clk 0:00:33]} 26. Bxf7+ {[%clk 0:01:31]}  Kxf7 {[%clk 0:00:31]} 27. Qb3+ {[%clk 0:01:31]}  Kg6 {[%clk 0:00:28]} 28. Nxb5 {[%clk 0:01:22]}  Qf6 {[%clk 0:00:17]} 29. Rb1 {[%clk 0:01:17]}  Be5 {[%clk 0:00:11]} 30. Nxa7 {[%clk 0:01:12]}  Rc3 {[%clk 0:00:07]} 31. Qb6 {[%clk 0:01:09]}  Qxb6 {[%clk 0:00:02]} 32. Bxb6 {[%clk 0:01:10]}  Ra3 {[%clk 0:00:03]} 33. Nc6 {[%clk 0:01:08]}  Bf6 {[%clk 0:00:02]} 34. Nb4 {[%clk 0:01:05]}  Nc3 {[%clk 0:00:03]} 35. Rb3 {[%clk 0:01:04]}  Ra4 {[%clk 0:00:03]} 36. a3 {[%clk 0:01:00]}  Nb5 {[%clk 0:00:03]} 37. Nc2 {[%clk 0:00:57]}  Rc4 {[%clk 0:00:03]} 38. Rxb5 {[%clk 0:00:58]}  Rxc2 {[%clk 0:00:03]} 39. Kg1 {[%clk 0:00:55]}  Ra2 {[%clk 0:00:03]} 40. Bc5 {[%clk 0:00:55]}  Rc2 {[%clk 0:00:03]} 41. Kf1 {[%clk 0:00:55]}  Ra2 {[%clk 0:00:04]} 42. Rb6 {[%clk 0:00:53]}  Kf7 {[%clk 0:00:02]} 43. h3 {[%clk 0:00:51]}  h5 {[%clk 0:00:02]} 44. Rb7+ {[%clk 0:00:51]}  Ke6 {[%clk 0:00:02]} 45. Rb6+ {[%clk 0:00:52]}  Kf7 {[%clk 0:00:02]} 46. g4 {[%clk 0:00:50]}  hxg4 {[%clk 0:00:02]} 47. hxg4 {[%clk 0:00:50]}  Kg7 {[%clk 0:00:03]} 48. Rb7+ {[%clk 0:00:49]}  Kg6 {[%clk 0:00:03]} 49. Rb6 {[%clk 0:00:50]}  Kf7 {[%clk 0:00:04]} 50. Bb4 {[%clk 0:00:48]}  Kg7 {[%clk 0:00:03]} 51. Rb7+ {[%clk 0:00:45]}  Kg6 {[%clk 0:00:03]} 52. Rb6 {[%clk 0:00:45]}  Kf7 {[%clk 0:00:04]} 53. Rc6 {[%clk 0:00:44]}  Bd4 {[%clk 0:00:04]} 54. Rc4 {[%clk 0:00:43]}  Be5 {[%clk 0:00:03]} 55. Re4 {[%clk 0:00:42]}  Bf4 {[%clk 0:00:03]} 56. Re2 {[%clk 0:00:42]}  Ra1+ {[%clk 0:00:01]} 57. Kg2 {[%clk 0:00:42]}  Kg6 {[%clk 0:00:02]} 58. Re6+ {[%clk 0:00:42]}  Kf7 {[%clk 0:00:02]} 59. Re7+ {[%clk 0:00:42]}  Kg6 {[%clk 0:00:02]} 60. Rg7+ {[%clk 0:00:39]}  Kh6 {[%clk 0:00:01]} 61. Re7 {[%clk 0:00:34]}  Kg6 {[%clk 0:00:02]} 62. Re6+ {[%clk 0:00:33]}  Kf7 {[%clk 0:00:02]} 63. Re2 {[%clk 0:00:34]}  Kg6 {[%clk 0:00:02]} 64. Kf3 {[%clk 0:00:34]}  Rf1+ {[%clk 0:00:01]} 65. Rf2 {[%clk 0:00:35]}  Rb1 {[%clk 0:00:01]} 66. Rg2 {[%clk 0:00:34]}  Rb3+ {[%clk 0:00:01]} 67. Ke4 {[%clk 0:00:35]}  Kf7 {[%clk 0:00:02]} 68. Kf5 {[%clk 0:00:34]}  Ke8 {[%clk 0:00:02]} 69. Re2+ {[%clk 0:00:33]}  Kf7 {[%clk 0:00:02]} 70. Re7+ {[%clk 0:00:33]}  Kg8 {[%clk 0:00:03]} 71. Kg6 {[%clk 0:00:33]}  Re3 {[%clk 0:00:01]} 72. Rxe3 {[%clk 0:00:29]}  Bxe3 {[%clk 0:00:02]} 73. a4 {[%clk 0:00:30]} 1-0


[Site "https://www.chess.com"]

[Event "Titled Tuesday Blitz January 25 2022"]
[White "Khripachenko, Alexander"]
[Black "Mirzoev, Azer"]
[WhiteFideId "54184975"]
[BlackFideId "13400304"]
[WhiteElo "2177"]
[BlackElo "2525"]
[Result "0-1"]
[Round "08"]
[TimeControl "180+1"]
[Date "2022.01.26"]
[WhiteClock "0:00:01"]
[BlackClock "0:01:13"]

1. e4 {[%clk 0:03:00]}  Nf6 {[%clk 0:03:00]} 2. e5 {[%clk 0:03:00]}  Nd5 {[%clk 0:03:01]} 3. d4 {[%clk 0:02:59]}  d6 {[%clk 0:03:01]} 4. c4 {[%clk 0:02:59]}  Nb6 {[%clk 0:03:01]} 5. f4 {[%clk 0:03:00]}  dxe5 {[%clk 0:03:00]} 6. fxe5 {[%clk 0:03:01]}  Bf5 {[%clk 0:03:00]} 7. Nc3 {[%clk 0:03:01]}  e6 {[%clk 0:03:01]} 8. Be3 {[%clk 0:03:00]}  Bb4 {[%clk 0:03:01]} 9. Rc1 {[%clk 0:02:52]}  O-O {[%clk 0:03:00]} 10. a3 {[%clk 0:02:52]}  Be7 {[%clk 0:02:56]} 11. Nf3 {[%clk 0:02:52]}  a5 {[%clk 0:02:50]} 12. Be2 {[%clk 0:02:33]}  a4 {[%clk 0:02:47]} 13. O-O {[%clk 0:02:33]}  N8d7 {[%clk 0:02:38]} 14. c5 {[%clk 0:02:23]}  Nd5 {[%clk 0:02:38]} 15. Nxd5 {[%clk 0:02:23]}  exd5 {[%clk 0:02:37]} 16. c6 {[%clk 0:02:24]}  bxc6 {[%clk 0:02:37]} 17. Rxc6 {[%clk 0:02:25]}  Nb6 {[%clk 0:02:36]} 18. Qd2 {[%clk 0:02:19]}  Qd7 {[%clk 0:02:26]} 19. Rc3 {[%clk 0:02:06]}  Rfb8 {[%clk 0:02:24]} 20. Rfc1 {[%clk 0:02:05]}  Ra7 {[%clk 0:02:24]} 21. Bf4 {[%clk 0:01:41]}  h6 {[%clk 0:02:18]} 22. e6 {[%clk 0:01:28]}  Qxe6 {[%clk 0:02:18]} 23. Rxc7 {[%clk 0:01:29]}  Rxc7 {[%clk 0:02:17]} 24. Rxc7 {[%clk 0:01:24]}  Bd6 {[%clk 0:02:09]} 25. Bxd6 {[%clk 0:01:18]}  Qxd6 {[%clk 0:02:09]} 26. Rc5 {[%clk 0:01:16]}  Be4 {[%clk 0:02:07]} 27. Ne5 {[%clk 0:00:53]}  f6 {[%clk 0:02:02]} 28. Rc6 {[%clk 0:00:29]}  Qd8 {[%clk 0:01:58]} 29. Nf3 {[%clk 0:00:29]}  Kh7 {[%clk 0:01:51]} 30. Bd3 {[%clk 0:00:27]}  Qe8 {[%clk 0:01:49]} 31. Qc2 {[%clk 0:00:20]}  Qg6 {[%clk 0:01:39]} 32. Bxe4 {[%clk 0:00:20]}  dxe4 {[%clk 0:01:39]} 33. Nd2 {[%clk 0:00:20]}  e3 {[%clk 0:01:36]} 34. Qxg6+ {[%clk 0:00:20]}  Kxg6 {[%clk 0:01:37]} 35. Nf3 {[%clk 0:00:18]}  Nd5 {[%clk 0:01:36]} 36. Rc2 {[%clk 0:00:15]}  Kf5 {[%clk 0:01:34]} 37. g3 {[%clk 0:00:04]}  Ke4 {[%clk 0:01:34]} 38. Kg2 {[%clk 0:00:04]}  g5 {[%clk 0:01:33]} 39. h3 {[%clk 0:00:04]}  h5 {[%clk 0:01:33]} 40. Ne1 {[%clk 0:00:04]}  Kxd4 {[%clk 0:01:24]} 41. Kf3 {[%clk 0:00:04]}  f5 {[%clk 0:01:20]} 42. Ke2 {[%clk 0:00:05]}  g4 {[%clk 0:01:17]} 43. hxg4 {[%clk 0:00:03]}  hxg4 {[%clk 0:01:17]} 44. Kd1 {[%clk 0:00:02]}  f4 {[%clk 0:01:14]} 45. gxf4 {[%clk 0:00:02]}  Nxf4 {[%clk 0:01:14]} 46. Ng2 {[%clk 0:00:01]}  Nxg2 {[%clk 0:01:13]} 0-1


[Site "https://www.chess.com"]

[Event "Titled Tuesday Blitz January 25 2022"]
[White "Kim, Sergey"]
[Black "Urazayev, Arystanbek"]
[WhiteFideId "13700570"]
[BlackFideId "13709810"]
[WhiteElo "2617"]
[BlackElo "2321"]
[Result "0-1"]
[Round "08"]
[TimeControl "180+1"]
[Date "2022.01.26"]
[WhiteClock "0:00:29"]
[BlackClock "0:02:01"]

1. d4 {[%clk 0:03:00]}  d5 {[%clk 0:02:59]} 2. c4 {[%clk 0:03:00]}  e6 {[%clk 0:03:00]} 3. Nc3 {[%clk 0:03:00]}  h6 {[%clk 0:03:00]} 4. Nf3 {[%clk 0:02:58]}  Nf6 {[%clk 0:03:01]} 5. Bf4 {[%clk 0:02:57]}  Bd6 {[%clk 0:03:01]} 6. Bg3 {[%clk 0:02:50]}  O-O {[%clk 0:03:01]} 7. e3 {[%clk 0:02:50]}  b6 {[%clk 0:03:00]} 8. cxd5 {[%clk 0:02:49]}  exd5 {[%clk 0:03:00]} 9. Bd3 {[%clk 0:02:47]}  Bb7 {[%clk 0:03:00]} 10. Ne5 {[%clk 0:02:42]}  c5 {[%clk 0:02:58]} 11. O-O {[%clk 0:02:37]}  Nc6 {[%clk 0:02:58]} 12. Bf5 {[%clk 0:02:33]}  Ne7 {[%clk 0:02:52]} 13. Bh3 {[%clk 0:02:29]}  Ne4 {[%clk 0:02:52]} 14. f4 {[%clk 0:02:26]}  Nxg3 {[%clk 0:02:44]} 15. hxg3 {[%clk 0:02:25]}  Bc8 {[%clk 0:02:44]} 16. Qh5 {[%clk 0:02:08]}  Bxh3 {[%clk 0:02:43]} 17. Qxh3 {[%clk 0:01:58]}  Qc8 {[%clk 0:02:43]} 18. f5 {[%clk 0:01:52]}  f6 {[%clk 0:02:35]} 19. Nd3 {[%clk 0:01:44]}  cxd4 {[%clk 0:02:35]} 20. exd4 {[%clk 0:01:44]}  Qc4 {[%clk 0:02:36]} 21. Nf4 {[%clk 0:01:40]}  Qxd4+ {[%clk 0:02:33]} 22. Kh1 {[%clk 0:01:34]}  Bxf4 {[%clk 0:02:33]} 23. Rxf4 {[%clk 0:01:31]}  Qe5 {[%clk 0:02:33]} 24. Rd1 {[%clk 0:01:26]}  Rad8 {[%clk 0:02:30]} 25. Qg4 {[%clk 0:01:25]}  d4 {[%clk 0:02:21]} 26. Rfxd4 {[%clk 0:01:21]}  Rxd4 {[%clk 0:02:20]} 27. Qxd4 {[%clk 0:01:18]}  Qxd4 {[%clk 0:02:20]} 28. Rxd4 {[%clk 0:01:17]}  Nxf5 {[%clk 0:02:21]} 29. Rd7 {[%clk 0:01:13]}  Rf7 {[%clk 0:02:19]} 30. Rd8+ {[%clk 0:01:13]}  Kh7 {[%clk 0:02:20]} 31. Kh2 {[%clk 0:01:11]}  Ne3 {[%clk 0:02:18]} 32. Nb5 {[%clk 0:01:03]}  Re7 {[%clk 0:02:14]} 33. Nd4 {[%clk 0:00:57]}  Ng4+ {[%clk 0:02:14]} 34. Kh3 {[%clk 0:00:54]}  h5 {[%clk 0:02:15]} 35. Kh4 {[%clk 0:00:40]}  g6 {[%clk 0:02:02]} 36. Nf3 {[%clk 0:00:34]}  Re2 {[%clk 0:02:02]} 37. Kh3 {[%clk 0:00:30]}  Rxb2 {[%clk 0:02:00]} 38. Rd7+ {[%clk 0:00:29]}  Kh6 {[%clk 0:02:01]} 0-1


[Site "https://www.chess.com"]

[Event "Titled Tuesday Blitz January 25 2022"]
[White "Kislinsky, Alexey"]
[Black "Song, Michael"]
[WhiteFideId "14108801"]
[BlackFideId "2613190"]
[WhiteElo "2335"]
[BlackElo "2274"]
[Result "0-1"]
[Round "08"]
[TimeControl "180+1"]
[Date "2022.01.26"]
[WhiteClock "0:00:19"]
[BlackClock "0:00:20"]

1. e4 {[%clk 0:02:30]}  e5 {[%clk 0:02:58]} 2. d4 {[%clk 0:02:28]}  exd4 {[%clk 0:02:58]} 3. Qxd4 {[%clk 0:02:28]}  Nc6 {[%clk 0:02:57]} 4. Qe3 {[%clk 0:02:24]}  Be7 {[%clk 0:02:45]} 5. Bd2 {[%clk 0:02:22]}  Nf6 {[%clk 0:02:44]} 6. c4 {[%clk 0:02:22]}  O-O {[%clk 0:02:41]} 7. Nc3 {[%clk 0:02:22]}  Re8 {[%clk 0:02:34]} 8. f3 {[%clk 0:02:21]}  a6 {[%clk 0:02:07]} 9. Nge2 {[%clk 0:02:18]}  b5 {[%clk 0:02:05]} 10. Nf4 {[%clk 0:02:15]}  Ne5 {[%clk 0:01:35]} 11. cxb5 {[%clk 0:02:03]}  axb5 {[%clk 0:01:36]} 12. Bxb5 {[%clk 0:02:03]}  c6 {[%clk 0:01:35]} 13. Be2 {[%clk 0:02:01]}  d5 {[%clk 0:01:35]} 14. exd5 {[%clk 0:01:45]}  Bd6 {[%clk 0:00:59]} 15. Qd4 {[%clk 0:01:28]}  g5 {[%clk 0:00:37]} 16. Nd3 {[%clk 0:01:12]}  Nxd3+ {[%clk 0:00:36]} 17. Qxd3 {[%clk 0:01:12]}  Ba6 {[%clk 0:00:35]} 18. Qf5 {[%clk 0:01:05]}  Nxd5 {[%clk 0:00:16]} 19. Ne4 {[%clk 0:00:55]}  Bxe2 {[%clk 0:00:12]} 20. Bxg5 {[%clk 0:00:51]}  Qb6 {[%clk 0:00:07]} 21. Kxe2 {[%clk 0:00:49]}  Qxb2+ {[%clk 0:00:06]} 22. Bd2 {[%clk 0:00:49]}  Nc3+ {[%clk 0:00:06]} 23. Kf1 {[%clk 0:00:21]}  Nxe4 {[%clk 0:00:07]} 24. Qg4+ {[%clk 0:00:21]}  Kh8 {[%clk 0:00:05]} 25. fxe4 {[%clk 0:00:14]}  Qxa1+ {[%clk 0:00:05]} 26. Kf2 {[%clk 0:00:15]}  Qf6+ {[%clk 0:00:05]} 27. Qf3 {[%clk 0:00:14]}  Be5 {[%clk 0:00:05]} 28. Qxf6+ {[%clk 0:00:14]}  Bxf6 {[%clk 0:00:06]} 29. Be3 {[%clk 0:00:14]}  Rxa2+ {[%clk 0:00:06]} 30. Kf3 {[%clk 0:00:15]}  Ra3 {[%clk 0:00:07]} 31. Kf4 {[%clk 0:00:15]}  Bg5+ {[%clk 0:00:07]} 32. Kxg5 {[%clk 0:00:15]}  Rxe3 {[%clk 0:00:08]} 33. Rd1 {[%clk 0:00:15]}  R3xe4 {[%clk 0:00:08]} 34. g4 {[%clk 0:00:16]}  R4e6 {[%clk 0:00:08]} 35. Kf5 {[%clk 0:00:15]}  Kg7 {[%clk 0:00:09]} 36. g5 {[%clk 0:00:14]}  Rb8 {[%clk 0:00:09]} 37. h4 {[%clk 0:00:13]}  Rb5+ {[%clk 0:00:10]} 38. Kg4 {[%clk 0:00:14]}  Rd5 {[%clk 0:00:10]} 39. Rf1 {[%clk 0:00:13]}  Re4+ {[%clk 0:00:10]} 40. Kh5 {[%clk 0:00:14]}  Rdd4 {[%clk 0:00:11]} 41. Rh1 {[%clk 0:00:13]}  Rxh4+ {[%clk 0:00:10]} 42. Rxh4 {[%clk 0:00:13]}  Rxh4+ {[%clk 0:00:11]} 43. Kxh4 {[%clk 0:00:14]}  h6 {[%clk 0:00:11]} 44. gxh6+ {[%clk 0:00:14]}  Kxh6 {[%clk 0:00:12]} 45. Kg4 {[%clk 0:00:15]}  Kg6 {[%clk 0:00:13]} 46. Kf4 {[%clk 0:00:15]}  f5 {[%clk 0:00:13]} 47. Ke5 {[%clk 0:00:15]}  Kg5 {[%clk 0:00:14]} 48. Kd4 {[%clk 0:00:16]}  Kg4 {[%clk 0:00:15]} 49. Ke3 {[%clk 0:00:16]}  f4+ {[%clk 0:00:16]} 50. Ke2 {[%clk 0:00:16]}  c5 {[%clk 0:00:16]} 51. Kf2 {[%clk 0:00:17]}  c4 {[%clk 0:00:17]} 52. Ke2 {[%clk 0:00:17]}  f3+ {[%clk 0:00:18]} 53. Kf2 {[%clk 0:00:18]}  Kf4 {[%clk 0:00:18]} 54. Ke1 {[%clk 0:00:18]}  Kg3 {[%clk 0:00:19]} 55. Kf1 {[%clk 0:00:18]}  f2 {[%clk 0:00:20]} 56. Ke2 {[%clk 0:00:19]}  Kg2 {[%clk 0:00:20]} 0-1


[Site "https://www.chess.com"]

[Event "Titled Tuesday Blitz January 25 2022"]
[White "Kretov, Evgenij"]
[Black "Pourkashiyan, Atousa"]
[WhiteFideId "4167821"]
[BlackFideId "12502014"]
[WhiteElo "2303"]
[BlackElo "2247"]
[Result "1-0"]
[Round "08"]
[TimeControl "180+1"]
[Date "2022.01.26"]
[WhiteClock "0:01:49"]
[BlackClock "0:00:07"]

1. d4 {[%clk 0:03:00]}  Nf6 {[%clk 0:02:46]} 2. c4 {[%clk 0:02:59]}  e6 {[%clk 0:02:46]} 3. Nc3 {[%clk 0:02:59]}  Bb4 {[%clk 0:02:47]} 4. Bg5 {[%clk 0:03:00]}  h6 {[%clk 0:02:40]} 5. Bh4 {[%clk 0:02:59]}  O-O {[%clk 0:02:40]} 6. Qc2 {[%clk 0:02:58]}  d5 {[%clk 0:02:38]} 7. cxd5 {[%clk 0:02:56]}  exd5 {[%clk 0:02:38]} 8. e3 {[%clk 0:02:55]}  Re8 {[%clk 0:02:34]} 9. Bd3 {[%clk 0:02:55]}  c6 {[%clk 0:02:34]} 10. Ne2 {[%clk 0:02:55]}  Nbd7 {[%clk 0:02:27]} 11. O-O {[%clk 0:02:53]}  Nf8 {[%clk 0:02:26]} 12. a3 {[%clk 0:02:51]}  Be7 {[%clk 0:02:25]} 13. b4 {[%clk 0:02:50]}  Ne4 {[%clk 0:02:17]} 14. Bxe7 {[%clk 0:02:47]}  Qxe7 {[%clk 0:02:17]} 15. Ng3 {[%clk 0:02:45]}  f5 {[%clk 0:02:10]} 16. b5 {[%clk 0:02:44]}  Bd7 {[%clk 0:02:03]} 17. bxc6 {[%clk 0:02:43]}  bxc6 {[%clk 0:02:04]} 18. Na4 {[%clk 0:02:39]}  g6 {[%clk 0:01:50]} 19. Bxe4 {[%clk 0:02:33]}  fxe4 {[%clk 0:01:48]} 20. Nc5 {[%clk 0:02:31]}  Ne6 {[%clk 0:01:48]} 21. Rfc1 {[%clk 0:02:26]}  Nxc5 {[%clk 0:01:48]} 22. Qxc5 {[%clk 0:02:26]}  Qxc5 {[%clk 0:01:48]} 23. Rxc5 {[%clk 0:02:26]}  Rab8 {[%clk 0:01:47]} 24. Ra5 {[%clk 0:02:26]}  Rb7 {[%clk 0:01:47]} 25. Ne2 {[%clk 0:02:24]}  Reb8 {[%clk 0:01:47]} 26. h3 {[%clk 0:02:23]}  Rb1+ {[%clk 0:01:44]} 27. Rxb1 {[%clk 0:02:23]}  Rxb1+ {[%clk 0:01:45]} 28. Kh2 {[%clk 0:02:23]}  Rb7 {[%clk 0:01:46]} 29. Kg3 {[%clk 0:02:19]}  Kf7 {[%clk 0:01:45]} 30. Nc3 {[%clk 0:02:19]}  Rb3 {[%clk 0:01:31]} 31. Rxa7 {[%clk 0:02:18]}  Rxc3 {[%clk 0:01:31]} 32. Rxd7+ {[%clk 0:02:18]}  Ke6 {[%clk 0:01:30]} 33. Rg7 {[%clk 0:02:15]}  Kf6 {[%clk 0:01:29]} 34. Rc7 {[%clk 0:02:15]}  Rxa3 {[%clk 0:01:15]} 35. Rxc6+ {[%clk 0:02:15]}  Kf7 {[%clk 0:01:07]} 36. Rd6 {[%clk 0:02:15]}  Ra5 {[%clk 0:01:06]} 37. f3 {[%clk 0:02:04]}  exf3 {[%clk 0:01:00]} 38. gxf3 {[%clk 0:02:03]}  Rb5 {[%clk 0:01:00]} 39. h4 {[%clk 0:02:01]}  Ra5 {[%clk 0:00:54]} 40. h5 {[%clk 0:01:57]}  gxh5 {[%clk 0:00:40]} 41. Rxh6 {[%clk 0:01:57]}  Ra1 {[%clk 0:00:33]} 42. Rxh5 {[%clk 0:01:57]}  Ke6 {[%clk 0:00:33]} 43. Kf4 {[%clk 0:01:54]}  Re1 {[%clk 0:00:30]} 44. Rh6+ {[%clk 0:01:54]}  Kd7 {[%clk 0:00:30]} 45. e4 {[%clk 0:01:53]}  dxe4 {[%clk 0:00:30]} 46. fxe4 {[%clk 0:01:54]}  Rd1 {[%clk 0:00:28]} 47. Ke5 {[%clk 0:01:53]}  Rg1 {[%clk 0:00:27]} 48. Rh7+ {[%clk 0:01:53]}  Ke8 {[%clk 0:00:26]} 49. d5 {[%clk 0:01:53]}  Rg5+ {[%clk 0:00:25]} 50. Kf4 {[%clk 0:01:52]}  Rg1 {[%clk 0:00:24]} 51. Kf5 {[%clk 0:01:52]}  Rg2 {[%clk 0:00:22]} 52. e5 {[%clk 0:01:52]}  Kd8 {[%clk 0:00:22]} 53. Kf6 {[%clk 0:01:49]}  Kc8 {[%clk 0:00:20]} 54. e6 {[%clk 0:01:49]}  Rf2+ {[%clk 0:00:20]} 55. Ke5 {[%clk 0:01:49]}  Re2+ {[%clk 0:00:18]} 56. Kd6 {[%clk 0:01:49]}  Ra2 {[%clk 0:00:17]} 57. Rh8+ {[%clk 0:01:49]}  Kb7 {[%clk 0:00:17]} 58. e7 {[%clk 0:01:49]}  Ra6+ {[%clk 0:00:16]} 59. Kd7 {[%clk 0:01:49]}  Ra7 {[%clk 0:00:07]} 1-0


[Site "https://www.chess.com"]